[Event "*** Titled Tuesday Blitz"]
[Site "Chess.com"]
[Date "2020.05.05"]
[Round "4"]
[White "Munkhzul_Turmunkh"]
[Black "Vusatiuk_Vladimir"]
[Result "1/2-1/2"]
[WhiteElo "2523"]
[BlackElo "2330"]
[TimeControl "180+1"]
[EndTime "10:41:37 PDT"]
[Termination "Game drawn by repetition"]

1. e4 {[%clk 0:03:00.9]} 1... c5 {[%clk 0:02:59.8]} 2. Nf3 {[%clk 0:03:00.7]}
2... Nc6 {[%clk 0:03:00.2]} 3. d4 {[%clk 0:03:00.8]} 3... cxd4 {[%clk
0:03:01.1]} 4. Nxd4 {[%clk 0:02:59.3]} 4... e5 {[%clk 0:03:01]} 5. Nb5 {[%clk
0:02:59]} 5... d6 {[%clk 0:03:01.1]} 6. c4 {[%clk 0:02:58.9]} 6... Be7 {[%clk
0:03:00]} 7. N1c3 {[%clk 0:02:58.5]} 7... a6 {[%clk 0:02:59.6]} 8. Na3 {[%clk
0:02:58.3]} 8... Be6 {[%clk 0:03:00]} 9. Nd5 {[%clk 0:02:50.4]} 9... Bxd5 {[%clk
0:02:56.1]} 10. cxd5 {[%clk 0:02:49.9]} 10... Nd4 {[%clk 0:02:55.8]} 11. Be3
{[%clk 0:02:47.1]} 11... Bf6 {[%clk 0:02:39.1]} 12. Bd3 {[%clk 0:02:31.7]} 12...
Ne7 {[%clk 0:02:36.4]} 13. O-O {[%clk 0:02:31.1]} 13... O-O {[%clk 0:02:34]} 14.
Rc1 {[%clk 0:02:30.4]} 14... Rc8 {[%clk 0:02:31.9]} 15. Qd2 {[%clk 0:02:26.9]}
15... b5 {[%clk 0:02:30.2]} 16. h3 {[%clk 0:02:05.3]} 16... Qd7 {[%clk
0:02:18.9]} 17. Rxc8 {[%clk 0:01:53.9]} 17... Rxc8 {[%clk 0:02:19.8]} 18. Rc1
{[%clk 0:01:54.2]} 18... g6 {[%clk 0:02:10]} 19. Bf1 {[%clk 0:01:50.6]} 19...
Bg7 {[%clk 0:02:06.5]} 20. Nc2 {[%clk 0:01:39.9]} 20... Nxc2 {[%clk 0:02:01.2]}
21. Rxc2 {[%clk 0:01:40.8]} 21... f5 {[%clk 0:02:00.2]} 22. f3 {[%clk
0:01:40.5]} 22... Bf6 {[%clk 0:01:54.2]} 23. Qc1 {[%clk 0:01:36.2]} 23... Bh4
{[%clk 0:01:36.9]} 24. Rxc8+ {[%clk 0:01:29.4]} 24... Nxc8 {[%clk 0:01:35.8]}
25. a4 {[%clk 0:01:23.1]} 25... f4 {[%clk 0:01:06.6]} 26. Bd2 {[%clk 0:01:13.7]}
26... Bd8 {[%clk 0:00:57.5]} 27. axb5 {[%clk 0:01:09.4]} 27... axb5 {[%clk
0:00:58.4]} 28. Bxb5 {[%clk 0:00:49.2]} 28... Bb6+ {[%clk 0:00:58.2]} 29. Kh1
{[%clk 0:00:48.1]} 29... Qxb5 {[%clk 0:00:58.5]} 30. Qxc8+ {[%clk 0:00:47.1]}
30... Kg7 {[%clk 0:00:57.8]} 31. Qc1 {[%clk 0:00:35.1]} 31... h5 {[%clk
0:00:53.6]} 32. Qe1 {[%clk 0:00:30.3]} 32... g5 {[%clk 0:00:51.7]} 33. Bc3
{[%clk 0:00:27.5]} 33... Qb3 {[%clk 0:00:39.3]} 34. Kh2 {[%clk 0:00:26.5]} 34...
Qc2 {[%clk 0:00:37.2]} 35. Qd2 {[%clk 0:00:25.1]} 35... Qb1 {[%clk 0:00:35.2]}
36. Qe1 {[%clk 0:00:24.8]} 36... Qc2 {[%clk 0:00:35]} 37. Qd2 {[%clk 0:00:20.7]}
37... Qb1 {[%clk 0:00:27.4]} 38. Qe1 {[%clk 0:00:20.3]} 38... Qa2 {[%clk
0:00:21.4]} 39. Qd2 {[%clk 0:00:17.8]} 39... g4 {[%clk 0:00:20.6]} 40. hxg4
{[%clk 0:00:17]} 40... hxg4 {[%clk 0:00:21.5]} 41. fxg4 {[%clk 0:00:16.8]} 41...
Qb1 {[%clk 0:00:21.7]} 42. Qe1 {[%clk 0:00:16.6]} 42... Qd3 {[%clk 0:00:22.1]}
43. Qh4 {[%clk 0:00:09.8]} 43... Qf1 {[%clk 0:00:19.3]} 44. Qg5+ {[%clk
0:00:09.4]} 44... Kf7 {[%clk 0:00:19.6]} 45. Qf5+ {[%clk 0:00:09]} 45... Ke7
{[%clk 0:00:18]} 46. Qh7+ {[%clk 0:00:08.7]} 46... Kd8 {[%clk 0:00:17]} 47. Qg8+
{[%clk 0:00:08]} 47... Kc7 {[%clk 0:00:17.4]} 48. Qf7+ {[%clk 0:00:07.4]} 48...
Kb8 {[%clk 0:00:17.6]} 49. Qe8+ {[%clk 0:00:06.6]} 49... Ka7 {[%clk 0:00:15.6]}
50. Qa4+ {[%clk 0:00:06.2]} 50... Kb7 {[%clk 0:00:15.8]} 51. Qd7+ {[%clk
0:00:06]} 51... Ka6 {[%clk 0:00:15]} 52. Qa4+ {[%clk 0:00:05.8]} 52... Kb7
{[%clk 0:00:14]} 53. Qc6+ {[%clk 0:00:06.1]} 53... Ka7 {[%clk 0:00:13.6]} 54.
Qa4+ {[%clk 0:00:05.8]} 54... Kb7 {[%clk 0:00:12.3]} 1/2-1/2

[Event "*** Titled Tuesday Blitz"]
[Site "Chess.com"]
[Date "2020.05.05"]
[Round "4"]
[White "Piotrek1979"]
[Black "IriBu"]
[Result "1-0"]
[WhiteElo "2288"]
[BlackElo "2444"]
[TimeControl "180+1"]
[EndTime "10:41:37 PDT"]
[Termination "Piotrek1979 won by resignation"]

1. Nf3 {[%clk 0:03:00.9]} 1... Nf6 {[%clk 0:02:59.5]} 2. g3 {[%clk 0:03:00.8]}
2... b6 {[%clk 0:02:59]} 3. Bg2 {[%clk 0:03:00.5]} 3... Bb7 {[%clk 0:02:59.9]}
4. O-O {[%clk 0:03:00.4]} 4... e6 {[%clk 0:03:00.5]} 5. d3 {[%clk 0:02:59.9]}
5... Be7 {[%clk 0:03:01]} 6. e4 {[%clk 0:02:59.2]} 6... d5 {[%clk 0:03:01.6]} 7.
Nc3 {[%clk 0:02:56.4]} 7... c5 {[%clk 0:03:01.7]} 8. Re1 {[%clk 0:02:54.4]} 8...
Nc6 {[%clk 0:02:58.7]} 9. exd5 {[%clk 0:02:40.8]} 9... exd5 {[%clk 0:02:55.4]}
10. Bf4 {[%clk 0:02:33.3]} 10... O-O {[%clk 0:02:54.5]} 11. Ne5 {[%clk 0:02:32]}
11... Rc8 {[%clk 0:02:49.4]} 12. Bh3 {[%clk 0:02:10.4]} 12... Ra8 {[%clk
0:02:48.5]} 13. Nxc6 {[%clk 0:01:56.1]} 13... Bxc6 {[%clk 0:02:48.2]} 14. Qf3
{[%clk 0:01:55.5]} 14... h6 {[%clk 0:02:38.3]} 15. Re2 {[%clk 0:01:40.9]} 15...
Bd6 {[%clk 0:02:31.3]} 16. Rae1 {[%clk 0:01:39.3]} 16... Bxf4 {[%clk 0:02:23.8]}
17. Qxf4 {[%clk 0:01:40.2]} 17... Re8 {[%clk 0:02:12.4]} 18. Re5 {[%clk
0:01:13.6]} 18... d4 {[%clk 0:02:00.6]} 19. Rxe8+ {[%clk 0:00:56.4]} 19... Nxe8
{[%clk 0:01:50.3]} 20. Ne4 {[%clk 0:00:57.3]} 20... Bxe4 {[%clk 0:01:49.5]} 21.
Qxe4 {[%clk 0:00:57.4]} 21... Nf6 {[%clk 0:01:46.4]} 22. Qc6 {[%clk 0:00:51.6]}
22... Rb8 {[%clk 0:01:33.6]} 23. a4 {[%clk 0:00:50.4]} 23... Qd5 {[%clk
0:01:31.4]} 24. Qc7 {[%clk 0:00:42.2]} 24... Qb7 {[%clk 0:01:31.4]} 25. Re7
{[%clk 0:00:39]} 25... Qxc7 {[%clk 0:01:23.3]} 26. Rxc7 {[%clk 0:00:39.9]} 26...
a5 {[%clk 0:01:20.3]} 27. b3 {[%clk 0:00:35.2]} 27... Nd5 {[%clk 0:01:19.3]} 28.
Rd7 {[%clk 0:00:27.7]} 28... Nb4 {[%clk 0:01:19.5]} 29. Bg2 {[%clk 0:00:28.3]}
29... Nxc2 {[%clk 0:01:12.7]} 30. Bd5 {[%clk 0:00:28.1]} 30... Rf8 {[%clk
0:01:12.6]} 31. Rb7 {[%clk 0:00:27.5]} 31... Nb4 {[%clk 0:01:12]} 32. Bc4 {[%clk
0:00:27.7]} 32... h5 {[%clk 0:01:01.2]} 33. Rxb6 {[%clk 0:00:28]} 33... h4
{[%clk 0:01:01.7]} 34. Rb5 {[%clk 0:00:28.3]} 34... h3 {[%clk 0:01:00.7]} 35.
Rxc5 {[%clk 0:00:28.3]} 35... Re8 {[%clk 0:01:00.8]} 36. f3 {[%clk 0:00:23.1]}
36... Re2 {[%clk 0:00:57.6]} 37. Rc8+ {[%clk 0:00:22.4]} 37... Kh7 {[%clk
0:00:57.9]} 38. Bxf7 {[%clk 0:00:22.9]} 38... Nc2 {[%clk 0:00:52.9]} 39. Bd5
{[%clk 0:00:21.1]} 39... Rg2+ {[%clk 0:00:41.8]} 40. Kh1 {[%clk 0:00:21.3]}
40... Ne3 {[%clk 0:00:32.4]} 41. Be4+ {[%clk 0:00:22.2]} 41... Kh6 {[%clk
0:00:26.9]} 42. Rc6+ {[%clk 0:00:22.8]} 42... Kh5 {[%clk 0:00:21.5]} 43. f4
{[%clk 0:00:23.7]} 43... Rd2 {[%clk 0:00:15.2]} 44. Bf3+ {[%clk 0:00:23.1]}
44... Ng4 {[%clk 0:00:15.4]} 45. Rc5+ {[%clk 0:00:22.5]} 45... Kh6 {[%clk
0:00:15.8]} 46. Bxg4 {[%clk 0:00:22.8]} 46... Rxd3 {[%clk 0:00:14.2]} 47. Rc6+
{[%clk 0:00:22.4]} 47... g6 {[%clk 0:00:12.2]} 48. f5 {[%clk 0:00:21]} 48...
Rxb3 {[%clk 0:00:10.6]} 49. Rxg6+ {[%clk 0:00:21]} 49... Kh7 {[%clk 0:00:11.2]}
50. Bxh3 {[%clk 0:00:21.4]} 50... d3 {[%clk 0:00:10.5]} 51. Bg4 {[%clk
0:00:21.7]} 51... d2 {[%clk 0:00:10.5]} 52. Rd6 {[%clk 0:00:21.8]} 52... Rb4
{[%clk 0:00:10.8]} 53. h3 {[%clk 0:00:21.5]} 53... Rxa4 {[%clk 0:00:09.8]} 54.
f6 {[%clk 0:00:21.9]} 54... Kg6 {[%clk 0:00:08.5]} 55. Rxd2 {[%clk 0:00:20.7]}
55... Ra1+ {[%clk 0:00:08]} 56. Kg2 {[%clk 0:00:21]} 56... a4 {[%clk 0:00:08.9]}
57. Rd6 {[%clk 0:00:20.9]} 57... a3 {[%clk 0:00:09]} 58. Ra6 {[%clk 0:00:21.1]}
58... a2 {[%clk 0:00:09.3]} 59. h4 {[%clk 0:00:21.5]} 59... Kf7 {[%clk
0:00:08.9]} 60. Bh5+ {[%clk 0:00:21.1]} 60... Kg8 {[%clk 0:00:08.6]} 61. Bg6
{[%clk 0:00:19.8]} 61... Rg1+ {[%clk 0:00:04.5]} 62. Kxg1 {[%clk 0:00:19.9]}
62... a1=Q+ {[%clk 0:00:05.4]} 63. Rxa1 {[%clk 0:00:19]} 1-0

[Event "*** Titled Tuesday Blitz"]
[Site "Chess.com"]
[Date "2020.05.05"]
[Round "4"]
[White "salomez"]
[Black "Bacyanide"]
[Result "0-1"]
[WhiteElo "2225"]
[BlackElo "2432"]
[TimeControl "180+1"]
[EndTime "10:41:37 PDT"]
[Termination "Bacyanide won on time"]

1. e4 {[%clk 0:03:00.9]} 1... c6 {[%clk 0:02:59.9]} 2. Nc3 {[%clk 0:02:51.7]}
2... d5 {[%clk 0:03:00.8]} 3. Nf3 {[%clk 0:02:49.4]} 3... dxe4 {[%clk
0:03:00.9]} 4. Nxe4 {[%clk 0:02:49]} 4... Nf6 {[%clk 0:03:01.8]} 5. Nxf6+ {[%clk
0:02:48]} 5... exf6 {[%clk 0:03:02.7]} 6. d4 {[%clk 0:02:46.9]} 6... Bd6 {[%clk
0:03:03.2]} 7. Bd3 {[%clk 0:02:46.5]} 7... O-O {[%clk 0:03:03]} 8. Be3 {[%clk
0:02:46.2]} 8... Re8 {[%clk 0:02:59.6]} 9. O-O {[%clk 0:02:45]} 9... Nd7 {[%clk
0:02:59.6]} 10. c4 {[%clk 0:02:44.7]} 10... Nf8 {[%clk 0:02:59.5]} 11. Qc2
{[%clk 0:02:31]} 11... Bg4 {[%clk 0:02:51]} 12. Nd2 {[%clk 0:02:28.6]} 12... Bc7
{[%clk 0:02:44.3]} 13. Ne4 {[%clk 0:02:22.1]} 13... f5 {[%clk 0:02:27.1]} 14.
Nc5 {[%clk 0:02:13.1]} 14... f4 {[%clk 0:02:26]} 15. Bd2 {[%clk 0:02:05.2]}
15... f3 {[%clk 0:02:00.9]} 16. g3 {[%clk 0:01:25.6]} 16... Qxd4 {[%clk
0:01:50.4]} 17. Be3 {[%clk 0:01:24.9]} 17... Rxe3 {[%clk 0:01:40.8]} 18. fxe3
{[%clk 0:01:24.2]} 18... Qxe3+ {[%clk 0:01:40.7]} 19. Qf2 {[%clk 0:01:23.3]}
19... Qxf2+ {[%clk 0:01:24.3]} 20. Kxf2 {[%clk 0:01:19.9]} 20... Be5 {[%clk
0:01:05.2]} 21. Nb3 {[%clk 0:01:08]} 21... Bxb2 {[%clk 0:00:50.1]} 22. Rab1
{[%clk 0:01:07.5]} 22... Ba3 {[%clk 0:00:47]} 23. Be4 {[%clk 0:01:06.4]} 23...
Be6 {[%clk 0:00:29.5]} 24. Nd2 {[%clk 0:00:54.9]} 24... Rd8 {[%clk 0:00:23.2]}
25. Rfd1 {[%clk 0:00:51.8]} 25... Bc5+ {[%clk 0:00:18.8]} 26. Kxf3 {[%clk
0:00:48.9]} 26... Rd7 {[%clk 0:00:17.5]} 27. Nb3 {[%clk 0:00:47.4]} 27... Rxd1
{[%clk 0:00:15.9]} 28. Rxd1 {[%clk 0:00:46.9]} 28... Bb4 {[%clk 0:00:16.2]} 29.
Rd8 {[%clk 0:00:34.7]} 29... Bxc4 {[%clk 0:00:15.8]} 30. Rd4 {[%clk 0:00:24.5]}
30... Bxb3 {[%clk 0:00:13.4]} 31. Rxb4 {[%clk 0:00:22.8]} 31... Bxa2 {[%clk
0:00:12.8]} 32. Rxb7 {[%clk 0:00:22.5]} 32... Bd5 {[%clk 0:00:11.2]} 33. Bxd5
{[%clk 0:00:21.4]} 33... cxd5 {[%clk 0:00:12.1]} 34. Rxa7 {[%clk 0:00:21.3]}
34... g6 {[%clk 0:00:11.3]} 35. Ra5 {[%clk 0:00:16.6]} 35... d4 {[%clk
0:00:11.3]} 36. Ke4 {[%clk 0:00:14.6]} 36... Ne6 {[%clk 0:00:12.2]} 37. Ke5
{[%clk 0:00:12.1]} 37... Kg7 {[%clk 0:00:13.1]} 38. Ra7 {[%clk 0:00:11.2]} 38...
h5 {[%clk 0:00:12]} 39. Rd7 {[%clk 0:00:09.5]} 39... g5 {[%clk 0:00:09.7]} 40.
h4 {[%clk 0:00:07.8]} 40... gxh4 {[%clk 0:00:09.4]} 41. gxh4 {[%clk 0:00:06.9]}
41... Kg6 {[%clk 0:00:10.3]} 42. Ke4 {[%clk 0:00:06.2]} 42... Kf6 {[%clk
0:00:10.1]} 43. Rd6 {[%clk 0:00:02.9]} 43... Ke7 {[%clk 0:00:09.9]} 44. Rd5
{[%clk 0:00:01.6]} 44... Kf6 {[%clk 0:00:09.7]} 0-1

[Event "*** Titled Tuesday Blitz"]
[Site "Chess.com"]
[Date "2020.05.05"]
[Round "4"]
[White "nadirsm"]
[Black "SmirnovAlexandrA"]
[Result "0-1"]
[WhiteElo "2135"]
[BlackElo "2323"]
[TimeControl "180+1"]
[EndTime "10:41:38 PDT"]
[Termination "SmirnovAlexandrA won on time"]

1. d4 {[%clk 0:03:00.8]} 1... Nf6 {[%clk 0:02:55.9]} 2. Bf4 {[%clk 0:03:00.4]}
2... g6 {[%clk 0:02:55.9]} 3. Nc3 {[%clk 0:03:00.4]} 3... Bg7 {[%clk 0:02:56.2]}
4. e4 {[%clk 0:03:00.9]} 4... d6 {[%clk 0:02:56.1]} 5. Be2 {[%clk 0:03:01]} 5...
O-O {[%clk 0:02:56.1]} 6. h4 {[%clk 0:03:01.3]} 6... h5 {[%clk 0:02:55]} 7. Nf3
{[%clk 0:03:00.7]} 7... c5 {[%clk 0:02:53]} 8. d5 {[%clk 0:03:00.1]} 8... a6
{[%clk 0:02:51.1]} 9. a4 {[%clk 0:02:59.7]} 9... Bg4 {[%clk 0:02:51]} 10. Ng5
{[%clk 0:02:58]} 10... Nbd7 {[%clk 0:02:48.5]} 11. f3 {[%clk 0:02:54.7]} 11...
b5 {[%clk 0:02:24.2]} 12. axb5 {[%clk 0:02:45.7]} 12... axb5 {[%clk 0:02:23.4]}
13. Rxa8 {[%clk 0:02:45.8]} 13... Qxa8 {[%clk 0:02:24.3]} 14. fxg4 {[%clk
0:02:45.9]} 14... b4 {[%clk 0:02:23.9]} 15. Nb1 {[%clk 0:02:44.1]} 15... e5
{[%clk 0:02:12.2]} 16. Be3 {[%clk 0:02:14.3]} 16... hxg4 {[%clk 0:02:06.9]} 17.
Bxg4 {[%clk 0:02:11]} 17... c4 {[%clk 0:02:05.7]} 18. O-O {[%clk 0:02:00.8]}
18... Nxg4 {[%clk 0:02:03.4]} 19. Qxg4 {[%clk 0:01:59.3]} 19... Nf6 {[%clk
0:02:03.8]} 20. Qe2 {[%clk 0:01:52.1]} 20... Rc8 {[%clk 0:01:58.9]} 21. Nd2
{[%clk 0:01:42.6]} 21... Qa2 {[%clk 0:01:57.8]} 22. Rb1 {[%clk 0:01:13]} 22...
c3 {[%clk 0:01:56.8]} 23. bxc3 {[%clk 0:01:12.7]} 23... bxc3 {[%clk 0:01:54.3]}
24. Rd1 {[%clk 0:01:04.4]} 24... cxd2 {[%clk 0:01:53.9]} 25. Rxd2 {[%clk
0:01:04.3]} 25... Rc4 {[%clk 0:01:34]} 26. c3 {[%clk 0:00:55.7]} 26... Qa1+
{[%clk 0:01:24.4]} 27. Rd1 {[%clk 0:00:50.7]} 27... Qxc3 {[%clk 0:01:24.2]} 28.
Rb1 {[%clk 0:00:46.8]} 28... Nxe4 {[%clk 0:00:53.3]} 29. Rb8+ {[%clk 0:00:39.1]}
29... Bf8 {[%clk 0:00:52.5]} 30. Nxe4 {[%clk 0:00:39.2]} 30... Rxe4 {[%clk
0:00:51.5]} 31. Rxf8+ {[%clk 0:00:39]} 31... Kxf8 {[%clk 0:00:45.4]} 32. Bh6+
{[%clk 0:00:38.8]} 32... Kg8 {[%clk 0:00:42.9]} 33. Qxe4 {[%clk 0:00:39.7]}
33... f5 {[%clk 0:00:36.6]} 34. Qa4 {[%clk 0:00:35.2]} 34... Qc5+ {[%clk
0:00:35.1]} 35. Kh2 {[%clk 0:00:34.2]} 35... Qxd5 {[%clk 0:00:34.4]} 36. Qd7
{[%clk 0:00:24.3]} 36... Qf7 {[%clk 0:00:29.8]} 37. Qxd6 {[%clk 0:00:24.2]}
37... e4 {[%clk 0:00:28.7]} 38. Bf4 {[%clk 0:00:18.3]} 38... Kh7 {[%clk
0:00:27.7]} 39. Be5 {[%clk 0:00:14.3]} 39... g5 {[%clk 0:00:23.6]} 40. hxg5
{[%clk 0:00:12.6]} 40... Qh5+ {[%clk 0:00:23.6]} 41. Kg1 {[%clk 0:00:12.9]}
41... Qxg5 {[%clk 0:00:23.6]} 42. Bf4 {[%clk 0:00:10.4]} 42... Qg4 {[%clk
0:00:18.3]} 43. Qe7+ {[%clk 0:00:08.6]} 43... Kg8 {[%clk 0:00:17.3]} 44. Qe6+
{[%clk 0:00:08.2]} 44... Kg7 {[%clk 0:00:16.9]} 45. Qh6+ {[%clk 0:00:07.7]}
45... Kf7 {[%clk 0:00:16.5]} 46. Qh7+ {[%clk 0:00:05.4]} 46... Ke6 {[%clk
0:00:16.5]} 47. Qh6+ {[%clk 0:00:04.6]} 47... Kd5 {[%clk 0:00:15.9]} 48. Qd6+
{[%clk 0:00:04.6]} 48... Kc4 {[%clk 0:00:16.3]} 49. Qd2 {[%clk 0:00:02.7]} 49...
Kc5 {[%clk 0:00:15.5]} 50. Be3+ {[%clk 0:00:02.6]} 50... Kc6 {[%clk 0:00:15.3]}
51. Qc3+ {[%clk 0:00:02.7]} 51... Kd5 {[%clk 0:00:15.2]} 52. Qd4+ {[%clk
0:00:02.6]} 52... Ke6 {[%clk 0:00:15.3]} 53. Qb6+ {[%clk 0:00:01.2]} 53... Kd5
{[%clk 0:00:15.1]} 0-1

[Event "*** Titled Tuesday Blitz"]
[Site "Chess.com"]
[Date "2020.05.05"]
[Round "4"]
[White "davigator"]
[Black "RianKapriaga"]
[Result "1-0"]
[WhiteElo "2313"]
[BlackElo "2133"]
[TimeControl "180+1"]
[EndTime "10:41:38 PDT"]
[Termination "davigator won on time"]

1. e4 {[%clk 0:03:00.9]} 1... e5 {[%clk 0:02:59.1]} 2. Nf3 {[%clk 0:03:00.6]}
2... Nc6 {[%clk 0:02:58.5]} 3. Bb5 {[%clk 0:03:00.8]} 3... a6 {[%clk 0:02:57.9]}
4. Ba4 {[%clk 0:03:00]} 4... Nf6 {[%clk 0:02:57.4]} 5. O-O {[%clk 0:02:58.8]}
5... Be7 {[%clk 0:02:56.9]} 6. Re1 {[%clk 0:02:58.7]} 6... b5 {[%clk 0:02:55.4]}
7. Bb3 {[%clk 0:02:58.7]} 7... d6 {[%clk 0:02:55.1]} 8. c3 {[%clk 0:02:58.7]}
8... O-O {[%clk 0:02:53.1]} 9. h3 {[%clk 0:02:58.8]} 9... Nb8 {[%clk 0:02:49.7]}
10. d4 {[%clk 0:02:58.3]} 10... Nbd7 {[%clk 0:02:49.6]} 11. Nbd2 {[%clk
0:02:58.6]} 11... c5 {[%clk 0:02:49.1]} 12. Nf1 {[%clk 0:02:58]} 12... Re8
{[%clk 0:02:45.4]} 13. Ng3 {[%clk 0:02:57.3]} 13... h6 {[%clk 0:02:45]} 14. a4
{[%clk 0:02:39.7]} 14... Rb8 {[%clk 0:02:42.6]} 15. axb5 {[%clk 0:02:36.7]}
15... axb5 {[%clk 0:02:42.1]} 16. Be3 {[%clk 0:02:27.4]} 16... exd4 {[%clk
0:02:35]} 17. cxd4 {[%clk 0:02:27.1]} 17... Bf8 {[%clk 0:02:32.8]} 18. Bc2
{[%clk 0:02:26.1]} 18... Bb7 {[%clk 0:02:29.9]} 19. d5 {[%clk 0:02:26.1]} 19...
Ra8 {[%clk 0:02:19.2]} 20. b3 {[%clk 0:02:25.3]} 20... g6 {[%clk 0:02:13]} 21.
Qd3 {[%clk 0:02:24.8]} 21... Bg7 {[%clk 0:02:11.3]} 22. Rxa8 {[%clk 0:02:22.5]}
22... Qxa8 {[%clk 0:02:07.9]} 23. Qxb5 {[%clk 0:02:22.9]} 23... Ba6 {[%clk
0:01:52.2]} 24. Qa5 {[%clk 0:02:22.5]} 24... Bb7 {[%clk 0:01:48.1]} 25. Qd2
{[%clk 0:02:21.9]} 25... Kh7 {[%clk 0:01:45.5]} 26. Bf4 {[%clk 0:02:21.6]} 26...
Qa6 {[%clk 0:01:38.5]} 27. Bd3 {[%clk 0:02:20]} 27... Qb6 {[%clk 0:01:38]} 28.
Bc4 {[%clk 0:02:19.6]} 28... Rd8 {[%clk 0:01:25.1]} 29. Qc1 {[%clk 0:02:13.8]}
29... Ba6 {[%clk 0:01:22]} 30. Nd2 {[%clk 0:02:11.6]} 30... Bb7 {[%clk
0:01:19.5]} 31. Nb1 {[%clk 0:02:08.9]} 31... Re8 {[%clk 0:01:18.7]} 32. Nc3
{[%clk 0:02:08.2]} 32... Ne5 {[%clk 0:01:17]} 33. Na4 {[%clk 0:02:04.9]} 33...
Qa5 {[%clk 0:01:10.8]} 34. Bd2 {[%clk 0:01:59.4]} 34... Qa7 {[%clk 0:01:04.1]}
35. Bb5 {[%clk 0:01:59.4]} 35... Re7 {[%clk 0:00:51.7]} 36. Bc3 {[%clk
0:01:53.8]} 36... Ba6 {[%clk 0:00:50.5]} 37. Bxa6 {[%clk 0:01:48]} 37... Qxa6
{[%clk 0:00:50.3]} 38. Qd2 {[%clk 0:01:46.8]} 38... Qb5 {[%clk 0:00:41.5]} 39.
Bxe5 {[%clk 0:01:44.6]} 39... Rxe5 {[%clk 0:00:39.8]} 40. Re3 {[%clk 0:01:37]}
40... h5 {[%clk 0:00:34.5]} 41. Qc2 {[%clk 0:01:34.7]} 41... Re8 {[%clk
0:00:27.9]} 42. Nc3 {[%clk 0:01:32.5]} 42... Qb4 {[%clk 0:00:25.1]} 43. Kh2
{[%clk 0:01:27.7]} 43... Nd7 {[%clk 0:00:22.8]} 44. Nce2 {[%clk 0:01:21.7]}
44... Bh6 {[%clk 0:00:18.4]} 45. f4 {[%clk 0:01:20]} 45... Nb6 {[%clk
0:00:15.5]} 46. Rf3 {[%clk 0:01:17]} 46... Nd7 {[%clk 0:00:13.8]} 47. Qc3 {[%clk
0:01:13.8]} 47... Qxc3 {[%clk 0:00:12.3]} 48. Nxc3 {[%clk 0:01:13.8]} 48... Bg7
{[%clk 0:00:11.4]} 49. Nb5 {[%clk 0:01:13.6]} 49... Bf8 {[%clk 0:00:10.3]} 50.
Re3 {[%clk 0:01:12]} 50... Nf6 {[%clk 0:00:08.2]} 51. Nf1 {[%clk 0:01:10]} 51...
Re7 {[%clk 0:00:05.6]} 52. Nd2 {[%clk 0:01:07.9]} 52... Nxd5 {[%clk 0:00:04.1]}
53. Rf3 {[%clk 0:01:07.8]} 53... Nb4 {[%clk 0:00:02]} 54. g4 {[%clk 0:01:06.5]}
54... Rb7 {[%clk 0:00:01.7]} 55. Nc3 {[%clk 0:01:04.6]} 55... hxg4 {[%clk
0:00:02.2]} 56. hxg4 {[%clk 0:01:04.1]} 56... Bg7 {[%clk 0:00:02.6]} 57. Ne2
{[%clk 0:01:02.6]} 57... Kg8 {[%clk 0:00:02.8]} 58. Ng3 {[%clk 0:01:00.2]} 58...
Nc6 {[%clk 0:00:03.2]} 59. g5 {[%clk 0:00:59.7]} 59... Nd4 {[%clk 0:00:03.5]}
60. Rd3 {[%clk 0:00:59.3]} 60... Ra7 {[%clk 0:00:03.7]} 61. Kh3 {[%clk 0:00:58]}
61... Ra2 {[%clk 0:00:04.1]} 62. Kg4 {[%clk 0:00:56.2]} 62... Rb2 {[%clk
0:00:04.4]} 63. f5 {[%clk 0:00:55.8]} 63... Be5 {[%clk 0:00:03.8]} 64. f6 {[%clk
0:00:54.4]} 64... Kf8 {[%clk 0:00:03.4]} 65. Ngf1 {[%clk 0:00:53.8]} 65... Ke8
{[%clk 0:00:03.3]} 66. Ne3 {[%clk 0:00:52.3]} 66... Kd7 {[%clk 0:00:02.6]} 67.
Nec4 {[%clk 0:00:52.3]} 1-0